bitfinex-derivatives/quotes_BTCF0:USTF0_20240830
["timestamp","ask_amount","ask_price","bid_price","bid_amount"]
[1725005502308,0.17967341,59399.0,59398.0,1.22227033]
[1725005503510,0.17967341,59399.0,59398.0,1.15495052]
[1725005503904,0.17967341,59399.0,59398.0,1.23911552]
[1725005508215,0.17967341,59399.0,59398.0,1.32328052]
[1725005508411,0.17542087,59399.0,59398.0,1.32328052]
[1725005508607,0.13359905,59399.0,59398.0,1.40726279]
[1725005508804,0.13359905,59399.0,59398.0,1.16153644]
[1725005509009,0.13359905,59399.0,59398.0,1.53564129]
[1725005509212,0.13359905,59399.0,59398.0,1.40738537]
[1725005509419,0.13359905,59399.0,59398.0,1.53563993]
[1725005509617,0.13359905,59399.0,59398.0,1.53564003]
[1725005510311,0.13359905,59399.0,59398.0,1.53563991]
[1725005510921,0.09472905,59399.0,59398.0,1.53563991]
[1725005511213,0.09472905,59399.0,59398.0,1.40738537]
[1725005512113,0.04951361,59399.0,59398.0,1.40738537]
[1725005512715,0.00515361,59399.0,59398.0,1.49155037]
[1725005513018,0.00515361,59399.0,59398.0,1.61980473]
[1725005513215,0.00515361,59399.0,59398.0,1.50001449]
[1725005513617,0.00515361,59399.0,59398.0,4.44001449]
[1725005515212,0.0039,59408.0,59407.0,0.084152]
[1725005515421,0.1119,59412.0,59407.0,0.734952]
[1725005515613,0.1119,59412.0,59411.0,0.734946]
[1725005516014,0.29453222,59412.0,59411.0,0.734946]
[1725005516724,0.29453222,59412.0,59411.0,0.735946]
[1725005517317,0.29453222,59412.0,59411.0,0.820092]
[1725005518025,0.23893222,59412.0,59411.0,0.651092]
[1725005518327,0.18263222,59412.0,59411.0,0.566946]
[1725005518518,0.18263222,59412.0,59411.0,0.651092]
[1725005518714,0.058,59415.0,59414.0,0.084142]
[1725005518914,0.058,59415.0,59414.0,0.204142]
[1725005519121,0.23573721,59415.0,59414.0,0.204142]
[1725005520025,0.23573721,59415.0,59414.0,0.205142]
[1725005520227,0.23573721,59415.0,59414.0,0.206142]
[1725005522117,0.31987821,59415.0,59414.0,0.206142]
[1725005522320,0.31987821,59415.0,59414.0,0.122]
[1725005523927,0.31987821,59415.0,59414.0,0.206142]
[1725005528225,0.31987821,59415.0,59414.0,0.566942]
[1725005531427,0.40401921,59415.0,59414.0,0.566942]
[1725005533832,0.31987821,59415.0,59414.0,0.566942]
[1725005536431,0.31987821,59415.0,59414.0,0.206142]
[1725005536939,0.40401921,59415.0,59414.0,0.25660081]
[1725005541042,0.40401921,59415.0,59414.0,0.206142]
[1725005543541,0.31987821,59415.0,59414.0,0.206142]
[1725005545941,0.31987821,59415.0,59414.0,0.210993]
[1725005549357,0.40401921,59415.0,59414.0,0.002]
[1725005549657,0.40401921,59415.0,59407.0,0.0039]
[1725005549658,0.084151,59408.0,59407.0,0.0039]
[1725005549847,0.084151,59408.0,59406.0,0.00025254]
[1725005549848,0.204152,59407.0,59406.0,0.00025254]
[1725005550048,0.168326,59399.0,59398.0,0.05051935]
[1725005550259,0.084166,59397.0,59396.0,0.05051935]
[1725005550462,0.168344,59393.0,59392.0,0.12]
[1725005550760,0.35819692,59393.0,59392.0,0.12]
[1725005550947,0.35719692,59393.0,59392.0,0.12]
[1725005551157,0.35619692,59393.0,59392.0,0.12]
[1725005552156,0.084173,59392.0,59391.0,0.00478533]
[1725005552360,0.084176,59390.0,59389.0,0.084177]
[1725005552758,0.26746333,59390.0,59389.0,0.084177]
[1725005552963,0.18328733,59390.0,59387.0,0.00025254]
[1725005553173,0.084179,59388.0,59387.0,0.37443254]
[1725005553457,0.25862684,59388.0,59387.0,0.37443254]
[1725005553762,0.25562684,59388.0,59387.0,0.37443254]
[1725005554261,0.25562684,59388.0,59387.0,0.38443254]
[1725005555053,0.25562684,59388.0,59387.0,0.38916956]
[1725005555662,0.25562684,59388.0,59387.0,0.38416956]
[1725005555864,0.25562684,59388.0,59387.0,0.01498956]
[1725005557958,0.33980584,59388.0,59387.0,0.01498956]
[1725005558565,0.42398484,59388.0,59387.0,0.01498956]
[1725005561271,0.33980584,59388.0,59387.0,0.01498956]
[1725005561467,0.25562684,59388.0,59387.0,0.09916956]
[1725005562271,0.07593604,59388.0,59387.0,0.09916956]
[1725005562771,0.16011504,59388.0,59387.0,0.09916956]
[1725005564774,0.16011504,59388.0,59387.0,0.01498956]
[1725005564775,0.24429404,59388.0,59387.0,0.01498956]
[1725005565778,0.24429404,59388.0,59387.0,0.01025254]
[1725005565779,1.72363304,59388.0,59387.0,0.01025254]
[1725005565970,2.08443304,59388.0,59387.0,0.01025254]
[1725005566174,0.168404,59372.0,59371.0,0.3608]
[1725005566372,0.458404,59372.0,59371.0,0.3608]
[1725005566567,0.64462441,59372.0,59371.0,0.3608]
[1725005566872,0.084213,59364.0,59358.0,0.08422]
[1725005567066,0.084213,59364.0,59357.0,0.3213]
[1725005567067,0.084213,59364.0,59359.0,0.084219]
[1725005567270,0.084213,59364.0,59358.0,0.00025254]
[1725005567271,0.35364641,59364.0,59358.0,0.00025254]
[1725005568178,0.35264641,59364.0,59358.0,0.00025254]
[1725005568571,0.35264641,59364.0,59363.0,0.3668]
[1725005568773,0.26843341,59364.0,59363.0,0.3668]
[1725005568971,0.27543341,59364.0,59363.0,0.3678]
[1725005569980,0.26843341,59364.0,59363.0,0.3668]
[1725005570183,0.28043341,59364.0,59363.0,0.3678]
[1725005570674,0.28043341,59364.0,59363.0,0.3618]
[1725005570974,0.29343341,59364.0,59363.0,0.3628]
[1725005572586,0.29343341,59364.0,59363.0,0.447014]
[1725005575669,0.21122041,59364.0,59363.0,0.447014]
[1725005576379,0.29543341,59364.0,59363.0,0.447014]
[1725005578581,0.28943341,59364.0,59363.0,0.447014]
[1725005578780,0.28343341,59364.0,59363.0,0.446014]
[1725005579490,0.28343341,59364.0,59363.0,0.447014]
[1725005580181,0.28443341,59364.0,59363.0,0.447014]
[1725005581787,0.20022041,59364.0,59363.0,0.447014]
[1725005582288,0.20122041,59364.0,59363.0,0.447014]
[1725005583678,0.28543341,59364.0,59363.0,0.447014]
[1725005587387,0.27743341,59364.0,59363.0,0.446014]
[1725005587587,0.28543341,59364.0,59363.0,0.447014]
[1725005589790,0.28543341,59364.0,59363.0,0.086214]
[1725005591390,0.36964641,59364.0,59363.0,0.13655528]
[1725005591590,0.36964641,59364.0,59363.0,0.086214]
[1725005592486,0.36964641,59364.0,59363.0,0.13658482]
[1725005593195,0.36964641,59364.0,59363.0,0.086214]
[1725005594095,0.36964641,59364.0,59363.0,0.206214]
[1725005594293,0.28543341,59364.0,59363.0,0.206214]
[1725005596999,0.28543341,59364.0,59363.0,0.567014]
[1725005597996,0.20122041,59364.0,59363.0,0.86363788]
[1725005598297,0.20122041,59364.0,59363.0,0.83787853]
[1725005598298,0.19922041,59364.0,59363.0,0.83787853]
[1725005600593,0.19922041,59364.0,59363.0,0.92206123]
[1725005600995,0.19922041,59364.0,59363.0,0.83787853]
[1725005601201,0.19922041,59364.0,59363.0,0.92204972]
[1725005601401,0.19922041,59364.0,59363.0,0.79369919]
[1725005602198,0.19922041,59364.0,59363.0,0.625314]
[1725005602689,0.19922041,59364.0,59363.0,0.709528]
[1725005602892,0.19922041,59364.0,59363.0,0.79369919]
[1725005603206,0.19922041,59364.0,59363.0,0.709528]
[1725005606594,0.19922041,59364.0,59363.0,0.86105408]
[1725005606799,0.19922041,59364.0,59363.0,0.709528]
[1725005607293,0.19922041,59364.0,59363.0,0.793742]
[1725005609810,0.00025254,59369.0,59368.0,0.252621]
[1725005609998,0.00025254,59369.0,59368.0,0.733421]
[1725005610200,0.17569427,59369.0,59368.0,1.983181]
[1725005611005,0.18269427,59369.0,59368.0,1.984181]
[1725005611395,0.18269427,59369.0,59368.0,1.985181]
[1725005611396,0.18469427,59369.0,59368.0,1.985181]
[1725005611596,0.18469427,59369.0,59368.0,2.345981]
[1725005613603,0.18469427,59369.0,59368.0,2.43873384]
[1725005614108,0.18469427,59369.0,59368.0,5.37873384]
[1725005614298,0.18469427,59369.0,59368.0,2.43873384]
[1725005614503,0.07140752,59369.0,59368.0,2.43873384]
[1725005614695,5.2e-07,59369.0,59368.0,2.43873384]
[1725005614898,0.0039,59377.0,59376.0,0.168392]
[1725005615109,0.269082,59386.0,59376.0,0.168392]
[1725005615110,0.0039,59385.0,59376.0,0.61539838]
[1725005615308,0.269082,59386.0,59376.0,0.61539838]
[1725005615309,0.269082,59386.0,59385.0,0.204183]
[1725005615501,0.1849,59386.0,59385.0,0.204183]
[1725005615806,0.1849,59386.0,59385.0,0.564983]
[1725005615807,0.36502459,59386.0,59385.0,0.564983]
[1725005617399,0.36502459,59386.0,59385.0,0.565983]
[1725005617599,0.36502459,59386.0,59385.0,0.566983]
[1725005617907,0.36502459,59386.0,59385.0,0.57174726]
[1725005619605,0.30342459,59386.0,59385.0,0.57174726]
[1725005620201,0.18012459,59386.0,59385.0,0.57174726]
[1725005620602,0.08442754,59391.0,59390.0,0.084176]
[1725005620901,0.27022223,59391.0,59390.0,0.564976]
[1725005621702,0.27022223,59391.0,59390.0,0.565976]
[1725005622210,0.18604723,59391.0,59390.0,0.565976]
[1725005622899,0.18604723,59391.0,59390.0,0.650152]
[1725005623411,0.18604723,59391.0,59390.0,0.651152]
[1725005624312,0.18604723,59391.0,59390.0,0.564976]
[1725005624618,0.18604723,59391.0,59390.0,0.565976]
[1725005625103,0.18604723,59391.0,59390.0,0.564976]
[1725005625710,0.18604723,59391.0,59390.0,0.649152]
[1725005627003,0.18604723,59391.0,59390.0,0.69955438]
[1725005627217,0.18604723,59391.0,59390.0,0.564976]
[1725005628006,0.18604723,59391.0,59390.0,0.649152]
[1725005628712,0.18604723,59391.0,59390.0,0.564976]
[1725005628910,0.18604723,59391.0,59390.0,0.649152]
[1725005632119,0.16465929,59391.0,59390.0,0.78373038]
[1725005632314,0.04693923,59391.0,59390.0,0.78373038]
[1725005632618,0.03726659,59391.0,59390.0,0.78373038]
[1725005632816,0.03726659,59391.0,59390.0,3.72373038]
[1725005634815,0.03726659,59391.0,59390.0,4.08453038]
[1725005635215,0.03726659,59391.0,59390.0,4.034128]
[1725005636021,0.03304766,59391.0,59390.0,4.034128]
[1725005636719,0.0039,59399.0,59398.0,0.084165]
[1725005636922,0.1205,59401.0,59400.0,0.084162]
[1725005637226,0.30462079,59401.0,59400.0,0.444962]
[1725005638128,0.18412079,59401.0,59400.0,0.529124]
[1725005638322,0.18412079,59401.0,59400.0,0.444962]
[1725005638524,0.0587,59405.0,59404.0,0.084156]
[1725005638725,0.0587,59405.0,59404.0,0.204156]
[1725005638920,0.24387149,59405.0,59404.0,0.204156]
[1725005643628,0.24387149,59405.0,59400.0,0.36556573]
[1725005643629,0.24387149,59405.0,59402.0,0.05027615]
[1725005643834,0.24387149,59405.0,59400.0,0.36556573]
[1725005643835,0.168322,59401.0,59400.0,0.36556573]
[1725005644030,0.252483,59401.0,59400.0,0.36556573]
[1725005644331,0.42977634,59401.0,59400.0,0.36556573]
[1725005645925,0.42977634,59401.0,59400.0,0.00476573]
[1725005646133,0.42977634,59401.0,59395.0,0.0039]
[1725005646134,1.45065534,59401.0,59395.0,0.0039]
[1725005646329,0.084187,59383.0,59380.0,0.084189]
[1725005646523,0.1774,59382.0,59380.0,0.084189]
[1725005646831,0.36494528,59382.0,59380.0,0.084189]
[1725005647026,0.1774,59382.0,59380.0,0.084189]
[1725005647231,0.1774,59382.0,59380.0,0.08887888]
[1725005647232,0.27173428,59381.0,59380.0,0.08887888]
[1725005647429,0.18754528,59381.0,59380.0,0.44967888]
[1725005647627,0.00025254,59387.0,59386.0,0.084182]
[1725005647824,0.00025254,59387.0,59386.0,0.49532049]
[1725005648136,0.17579076,59387.0,59386.0,0.444982]
[1725005649024,0.17579076,59387.0,59386.0,0.73966805]
[1725005649327,0.17579076,59387.0,59386.0,1.24482805]
[1725005649533,0.13367936,59387.0,59386.0,1.32901005]
[1725005649834,0.14567936,59387.0,59386.0,1.24582805]
[1725005650238,0.15167936,59387.0,59386.0,1.24682805]
[1725005650732,0.15167936,59387.0,59386.0,1.33101005]
[1725005651533,0.1215,59399.0,59398.0,0.084165]
[1725005651733,0.1215,59399.0,59398.0,1.095765]
[1725005652029,0.29891509,59399.0,59398.0,1.095765]
[1725005653129,0.31291509,59399.0,59398.0,0.805765]
[1725005653728,0.31291509,59399.0,59398.0,0.806765]
[1725005654430,0.31291509,59399.0,59398.0,1.1471237]
[1725005654628,0.31291509,59399.0,59398.0,1.096765]
[1725005655234,0.31291509,59399.0,59398.0,1.1014458]
[1725005655840,0.29891509,59399.0,59398.0,1.1014458]
[1725005656029,0.29891509,59399.0,59398.0,1.1004458]
[1725005656634,0.29891509,59399.0,59398.0,1.23498006]
[1725005658856,0.29891509,59399.0,59398.0,1.23598006]
[1725005659148,0.17741509,59399.0,59398.0,1.2697758]
[1725005659542,0.1831,59412.0,59410.0,0.084148]
[1725005659543,0.1777765,59411.0,59410.0,0.084148]
[1725005659735,0.1831,59412.0,59411.0,0.084146]
[1725005660136,0.37279986,59412.0,59411.0,0.084146]
[1725005660941,0.37279986,59412.0,59411.0,0.085146]
[1725005661640,0.45694486,59412.0,59411.0,0.085146]
[1725005662345,0.45694486,59412.0,59411.0,0.086146]
[1725005663749,0.45694486,59412.0,59411.0,0.085146]
[1725005663946,0.45694486,59412.0,59411.0,0.086146]
[1725005664347,0.45694486,59412.0,59411.0,0.085146]
[1725005664552,0.45694486,59412.0,59411.0,0.086146]
[1725005665544,0.45794486,59412.0,59411.0,0.086146]
[1725005665951,0.54208986,59412.0,59411.0,0.086146]
[1725005666353,0.54208986,59412.0,59411.0,0.085146]
[1725005666553,0.54208986,59412.0,59411.0,0.086146]
[1725005667160,0.54208986,59412.0,59411.0,0.002]
[1725005668454,0.54108986,59412.0,59411.0,0.001]
[1725005668649,0.54208986,59412.0,59411.0,0.002]
[1725005670255,1.64704986,59412.0,59411.0,0.002]
[1725005671260,1.69285072,59412.0,59411.0,0.002]
[1725005671453,1.64704986,59412.0,59411.0,0.002]
[1725005672458,1.48141579,59412.0,59411.0,0.002]
[1725005672961,1.52719869,59412.0,59411.0,0.002]
[1725005673358,0.92719869,59412.0,59411.0,0.002]
[1725005673865,1.52719869,59412.0,59411.0,0.002]
[1725005675054,1.61134369,59412.0,59411.0,0.002]
[1725005675759,1.73620677,59412.0,59411.0,0.002]
[1725005677063,1.82035177,59412.0,59411.0,0.002]
[1725005677364,0.252465,59405.0,59404.0,0.0039]
[1725005677557,0.374159,59402.0,59398.0,0.0039]
[1725005677757,0.08417,59394.0,59393.0,0.0039]
[1725005678051,0.08417,59394.0,59392.0,0.084172]
[1725005678052,0.084172,59393.0,59392.0,0.084172]
[1725005678465,0.26838647,59393.0,59392.0,0.084172]
[1725005679365,0.26838647,59393.0,59392.0,0.094172]
[1725005679661,0.26838647,59393.0,59392.0,0.102172]
[1725005680060,0.26838647,59393.0,59392.0,0.094172]
[1725005680263,0.26938647,59393.0,59392.0,0.095172]
[1725005681559,0.13462224,59399.0,59392.0,0.095172]
[1725005681560,0.04553083,59399.0,59392.0,0.591293]
[1725005681762,0.0039,59401.0,59400.0,0.084162]
[1725005681959,0.0583,59419.0,59405.0,0.084154]
[1725005681960,0.0039,59408.0,59405.0,0.084154]
[1725005682159,0.084146,59412.0,59408.0,0.29]
[1725005682360,0.08414,59416.0,59408.0,0.29]
[1725005682574,0.18121044,59409.0,59408.0,0.29]
[1725005682879,0.18121044,59413.0,59408.0,0.29]
[1725005683061,0.19428027,59414.0,59412.0,0.3608]
[1725005683259,0.08414,59416.0,59412.0,0.3608]
[1725005683463,0.084143,59414.0,59412.0,0.3608]
[1725005683757,0.27842327,59414.0,59412.0,0.3608]
[1725005683964,0.084141,59415.0,59412.0,0.3608]
[1725005684167,0.18735092,59413.0,59412.0,0.3608]
[1725005684564,0.084141,59415.0,59412.0,0.3608]
[1725005684959,0.18641716,59413.0,59412.0,0.3608]
[1725005685166,0.18641716,59414.0,59412.0,0.3608]
[1725005685466,0.084141,59415.0,59412.0,0.3618]
[1725005685660,0.18641716,59414.0,59412.0,0.3618]
[1725005686566,0.18641716,59414.0,59412.0,0.3628]
[1725005687868,0.18641716,59414.0,59412.0,0.446945]
[1725005688071,0.18641716,59414.0,59412.0,0.3628]
[1725005688266,0.18641716,59414.0,59413.0,0.084144]
[1725005689368,0.146336,59419.0,59417.0,0.084138]
[1725005689369,0.18438978,59418.0,59417.0,0.084138]
[1725005689563,0.146336,59419.0,59417.0,0.084138]
[1725005689564,0.142436,59419.0,59417.0,0.084138]
[1725005689757,0.142436,59419.0,59413.0,0.002]
[1725005689758,0.142436,59419.0,59418.0,0.084136]
[1725005689965,0.04577274,59423.0,59421.0,0.084132]
[1725005690170,0.084129,59424.0,59421.0,0.084132]
[1725005690366,0.55067764,59422.0,59421.0,0.084132]
[1725005691382,0.63480864,59422.0,59421.0,0.084132]
[1725005691873,0.63480864,59422.0,59421.0,0.085132]
[1725005692263,0.63480864,59422.0,59421.0,0.086132]
[1725005692573,0.27400864,59422.0,59421.0,0.086132]
[1725005692774,0.12990808,59425.0,59421.0,0.086132]
[1725005692975,0.177006,59422.0,59421.0,0.086132]
[1725005693170,0.177006,59424.0,59421.0,0.086132]
[1725005693361,0.084128,59424.0,59423.0,0.3608]
[1725005693770,0.261134,59424.0,59423.0,0.3608]
[1725005694277,0.00475963,59430.0,59423.0,0.3608]
[1725005694479,0.86168,59440.0,59433.0,0.084115]
[1725005694480,0.0039,59434.0,59433.0,0.084115]
[1725005694779,0.0039,59434.0,59433.0,0.6508]
[1725005694780,0.18231047,59434.0,59433.0,0.6508]
[1725005694963,0.18231047,59434.0,59433.0,0.734915]
[1725005695167,0.18231047,59440.0,59438.0,0.084107]
[1725005695373,0.061,59445.0,59439.0,0.3608]
[1725005695568,0.0571,59445.0,59444.0,0.3608]
[1725005695975,0.75105272,59445.0,59444.0,0.3608]
[1725005697278,0.24637272,59445.0,59444.0,0.3608]
[1725005698273,0.24637272,59445.0,59444.0,0.3618]
[1725005698573,0.24637272,59445.0,59444.0,0.3628]
[1725005700065,0.83515072,59445.0,59444.0,0.002]
[1725005700266,1.43515072,59445.0,59444.0,0.002]
[1725005701480,1.79595072,59445.0,59444.0,0.002]
[1725005701778,1.43515072,59445.0,59444.0,0.002]
[1725005702267,0.83515072,59445.0,59444.0,0.002]
[1725005702771,1.12515072,59445.0,59444.0,0.002]
[1725005706170,1.20924872,59445.0,59444.0,0.002]
[1725005710176,0.70456872,59445.0,59444.0,0.002]
[1725005714785,0.70456872,59445.0,59444.0,0.001]
[1725005714983,0.70456872,59445.0,59444.0,0.002]
[1725005715378,0.70456872,59445.0,59444.0,0.001]
[1725005715686,0.78866672,59445.0,59444.0,0.002]
[1725005716485,0.168214,59439.0,59438.0,0.3608]
[1725005716685,0.168228,59434.0,59433.0,0.00025254]
[1725005716877,0.458228,59434.0,59433.0,0.00025254]
[1725005717075,1.23343822,59434.0,59433.0,0.00025254]
[1725005717279,1.41023822,59434.0,59433.0,0.00025254]
[1725005717480,1.40923822,59434.0,59433.0,0.00025254]
[1725005717675,1.40923822,59434.0,59424.0,0.3608]
[1725005717676,0.084127,59425.0,59424.0,0.3608]
[1725005717877,0.084127,59425.0,59424.0,0.36550269]
[1725005718087,0.084127,59425.0,59424.0,0.3608]
[1725005718088,0.35909657,59425.0,59424.0,0.3608]
[1725005719498,0.27496957,59425.0,59424.0,0.3608]
[1725005719689,0.35909657,59425.0,59424.0,0.3608]
[1725005719880,0.25566521,59425.0,59424.0,0.3608]
[1725005720579,0.25866521,59425.0,59424.0,0.3618]
[1725005721084,0.26066521,59425.0,59424.0,0.3628]
[1725005722690,0.25766521,59425.0,59424.0,0.001]
[1725005722881,0.25966521,59425.0,59424.0,0.002]
[1725005732692,0.34379221,59425.0,59424.0,0.002]
[1725005740897,0.09141121,59425.0,59424.0,0.86764]
[1725005741096,0.09141121,59425.0,59424.0,1.925896]
[1725005741298,0.09163121,59425.0,59424.0,2.06042537]
[1725005741504,0.09163121,59425.0,59424.0,2.010024]
[1725005741505,0.08547867,59425.0,59424.0,2.010024]
[1725005742005,0.08547867,59425.0,59424.0,1.840024]
[1725005742210,0.08547867,59425.0,59424.0,1.869424]
[1725005743307,0.01867867,59425.0,59424.0,1.869424]
[1725005743807,0.01667867,59425.0,59424.0,1.868424]
[1725005744007,0.01667867,59425.0,59424.0,2.046424]
[1725005744802,0.00025254,59430.0,59429.0,0.252363]
[1725005744998,5.4e-07,59430.0,59429.0,0.97028191]
[1725005745212,0.18684643,59430.0,59429.0,2.007963]
[1725005746201,0.18684643,59430.0,59429.0,2.012963]
[1725005746806,0.18684643,59430.0,59429.0,1.928842]
[1725005747308,0.18684643,59430.0,59429.0,1.99592255]
[1725005747818,0.18684643,59430.0,59429.0,1.99792255]
[1725005748214,0.18684643,59430.0,59429.0,1.930842]
[1725005750213,0.18684643,59430.0,59429.0,1.93525543]
[1725005750515,0.18684643,59430.0,59429.0,2.01937643]
[1725005750815,0.15787754,59430.0,59429.0,2.01937643]
[1725005751319,0.0039,59438.0,59437.0,0.16822]
[1725005751526,0.0592,59445.0,59437.0,0.6508]
[1725005751728,0.0592,59445.0,59444.0,0.4449]
[1725005752230,0.24786686,59445.0,59444.0,0.4449]
[1725005752434,0.33196486,59445.0,59444.0,0.3608]
[1725005753416,0.33296486,59445.0,59444.0,0.3618]
[1725005753817,0.41706286,59445.0,59444.0,0.3618]
[1725005754222,0.41706286,59445.0,59444.0,0.36727959]
[1725005754223,0.41906286,59445.0,59444.0,0.36727959]
[1725005756039,0.79316086,59445.0,59444.0,0.002]
[1725005756332,0.79316086,59445.0,59437.0,0.3608]
[1725005756333,0.168216,59438.0,59437.0,0.3608]
[1725005756724,0.34864564,59438.0,59437.0,0.3608]
[1725005757828,0.35064564,59438.0,59437.0,0.36617197]
[1725005758027,0.35264564,59438.0,59437.0,0.36617197]
[1725005759738,0.35264564,59438.0,59437.0,0.00537197]
[1725005759937,0.35264564,59438.0,59437.0,0.36617197]
[1725005760342,0.41344564,59438.0,59437.0,0.36617197]
[1725005763935,0.41344564,59438.0,59437.0,0.00537197]
[1725005764239,0.41344564,59438.0,59437.0,0.36617197]
[1725005765135,0.32933764,59438.0,59437.0,0.45028197]
[1725005766030,0.41344564,59438.0,59437.0,0.45028197]
[1725005766630,0.41344564,59438.0,59437.0,0.08948197]
[1725005766842,0.41344564,59438.0,59437.0,0.45028197]
[1725005768140,0.32114862,59438.0,59437.0,0.45028197]
[1725005770944,0.32114862,59438.0,59437.0,0.50054665]
[1725005771149,0.32114862,59438.0,59437.0,0.45028197]
[1725005776544,0.32114862,59438.0,59437.0,0.50073336]
[1725005776747,0.32114862,59438.0,59437.0,0.45028197]
[1725005779854,0.32114862,59438.0,59437.0,0.08948197]
[1725005782952,0.32114862,59438.0,59437.0,0.00537197]
[1725005783146,1.50997662,59438.0,59437.0,0.001]
[1725005783461,0.9561598,59438.0,59437.0,0.001]
[1725005783846,1.56065316,59438.0,59437.0,0.001]
[1725005784063,0.96065316,59438.0,59437.0,0.001]
[1725005784448,1.08065316,59438.0,59437.0,0.001]
[1725005785255,0.57593316,59438.0,59437.0,0.001]
[1725005785448,1.08065316,59438.0,59437.0,0.001]
[1725005785647,0.3673318,59438.0,59437.0,0.001]
[1725005785845,0.4873318,59438.0,59437.0,0.001]
[1725005786053,0.4032238,59438.0,59437.0,0.001]
[1725005787258,0.35704062,59438.0,59437.0,0.001]
[1725005787845,0.35704062,59438.0,59437.0,0.08957324]
[1725005788056,0.23704062,59438.0,59437.0,0.08957324]
[1725005790960,0.09213262,59438.0,59437.0,0.37957324]
[1725005791353,0.09213262,59438.0,59437.0,0.46368324]
[1725005792047,0.09235262,59438.0,59437.0,0.46368324]
[1725005792657,0.09235262,59438.0,59437.0,0.37957324]
[1725005793260,0.09235262,59438.0,59437.0,0.82448324]
[1725005793452,0.09235262,59438.0,59437.0,0.74037324]
[1725005793867,0.09235262,59438.0,59437.0,0.82448324]
[1725005794245,0.09235262,59438.0,59437.0,0.74037324]
[1725005795247,0.04995671,59445.0,59437.0,0.65626324]
[1725005795464,0.1769432,59438.0,59437.0,0.74037324]
[1725005795958,0.084103,59442.0,59437.0,0.65726324]
[1725005796257,0.084103,59442.0,59437.0,0.79183738]
[1725005796258,0.18683386,59438.0,59437.0,0.79183738]
[1725005796457,0.18683386,59440.0,59439.0,0.084107]
[1725005796660,0.084103,59442.0,59438.0,0.084108]
[1725005796863,0.084103,59442.0,59441.0,0.3608]
[1725005797263,0.27226751,59442.0,59441.0,0.3608]
[1725005797854,0.27226751,59442.0,59441.0,0.444904]
[1725005800071,0.27226751,59442.0,59441.0,0.805704]
[1725005800362,0.18816451,59442.0,59441.0,0.805704]
[1725005800665,0.27515906,59444.0,59443.0,0.084101]
[1725005801054,0.0841,59444.0,59443.0,0.084101]
[1725005801255,0.26102085,59444.0,59443.0,0.084101]
[1725005801763,0.26102085,59444.0,59443.0,0.444901]
[1725005802660,0.26202085,59444.0,59443.0,0.444901]
[1725005803059,0.26202085,59444.0,59443.0,0.084101]
[1725005803257,0.26202085,59444.0,59443.0,0.444901]
[1725005805356,0.06157745,59444.0,59443.0,0.444901]
[1725005805957,0.14567745,59444.0,59443.0,0.44938675]
[1725005808852,0.14567745,59444.0,59443.0,0.08858675]
[1725005809051,0.14567745,59444.0,59443.0,0.44938675]
[1725005809359,0.14567745,59444.0,59443.0,0.45038675]
[1725005810064,0.14567745,59444.0,59443.0,0.57038675]
[1725005811876,0.14567745,59444.0,59443.0,0.56938675]
[1725005813263,0.14567745,59444.0,59443.0,0.44938675]
[1725005813465,0.26567745,59444.0,59443.0,0.44938675]
[1725005816469,0.26767745,59444.0,59443.0,0.45038675]
[1725005816969,0.26667745,59444.0,59443.0,0.08858675]
[1725005817164,0.26767745,59444.0,59443.0,0.45038675]
[1725005817474,0.26867745,59444.0,59443.0,0.45038675]
[1725005817668,0.08460974,59444.0,59443.0,0.45038675]
[1725005817874,0.35022327,59444.0,59443.0,0.45038675]
[1725005818673,0.27461353,59444.0,59443.0,0.45038675]
[1725005819374,0.27361353,59444.0,59443.0,0.08958675]
[1725005819577,0.27361353,59444.0,59443.0,0.45038675]
[1725005821675,0.27361353,59444.0,59443.0,0.57038675]
[1725005822483,0.27361353,59444.0,59443.0,0.62080382]
[1725005822686,0.27261353,59444.0,59443.0,0.61980382]
[1725005823370,0.25061353,59444.0,59443.0,0.61980382]
[1725005823565,0.25261353,59444.0,59443.0,0.61980382]
[1725005823766,0.24761353,59444.0,59443.0,0.61980382]
[1725005823971,0.25361353,59444.0,59443.0,0.62080382]
[1725005824178,0.25361353,59444.0,59443.0,0.65448775]
[1725005824179,0.18751353,59444.0,59443.0,0.65448775]
[1725005824479,0.18951353,59444.0,59443.0,1.84326875]
[1725005824691,0.08434842,59444.0,59443.0,4.78326875]
[1725005825185,0.08434842,59444.0,59443.0,1.84326875]
[1725005825675,0.08334842,59444.0,59443.0,4.78226875]
[1725005825876,0.08334842,59444.0,59443.0,4.39008875]
[1725005826071,0.08334842,59444.0,59443.0,4.84596875]
[1725005826277,0.07834842,59444.0,59443.0,4.99008875]
[1725005826477,0.08334842,59444.0,59443.0,4.99008875]
[1725005826675,0.08134842,59444.0,59443.0,4.99008875]
[1725005826877,0.08334842,59444.0,59443.0,4.99008875]
[1725005827278,0.08334842,59444.0,59443.0,4.72596875]
[1725005827580,0.08334842,59444.0,59443.0,4.84596875]
[1725005827787,0.08334842,59444.0,59443.0,4.99008875]
[1725005829687,0.08334842,59444.0,59443.0,4.67776675]
[1725005829874,0.08334842,59444.0,59443.0,4.82188675]
[1725005830676,0.08334842,59444.0,59443.0,4.90598775]
[1725005830883,0.08334842,59444.0,59443.0,4.82188675]
[1725005831184,0.08334842,59444.0,59443.0,4.90598775]
[1725005832774,0.08334842,59444.0,59443.0,5.26678775]
[1725005833177,0.04980551,59444.0,59443.0,2.41088875]
[1725005833382,0.00673741,59444.0,59443.0,2.41088875]
[1725005833773,0.18399649,59444.0,59443.0,5.35930841]
[1725005834684,0.18399649,59444.0,59443.0,5.4434796]
[1725005834890,0.17799649,59444.0,59443.0,5.35930841]
[1725005835487,0.17183032,59444.0,59443.0,5.35930841]
[1725005835887,0.0989606,59444.0,59443.0,5.45640941]
[1725005836279,0.0989606,59444.0,59443.0,5.46440941]
[1725005836591,0.0398761,59444.0,59443.0,5.67673259]
[1725005836888,1e-07,59444.0,59443.0,5.67973259]
[1725005837085,0.0039,59449.0,59448.0,0.252282]
[1725005837278,0.0039,59453.0,59452.0,0.252264]
[1725005837473,0.0626,59457.0,59456.0,0.168166]
[1725005837678,0.0626,59457.0,59456.0,0.648966]
[1725005837977,0.24668209,59457.0,59456.0,0.648966]
[1725005838181,0.24668209,59457.0,59456.0,0.69931728]
[1725005839180,0.24668209,59457.0,59456.0,0.648966]
[1725005840188,0.76677025,59484.0,59456.0,1.669443]